[Event "80th ARM-ch 1st League 2019"]
[Site "Yerevan"]
[Date "2019.08.20"]
[Round "3.5"]
[White "Gevorgyan, Albert"]
[Black "Sargsyan, Shant"]
[Result "0-1"]
[ECO "B59"]
[WhiteElo "2175"]
[BlackElo "2540"]
[Annotator "ChessBase"]
[PlyCount "82"]
[EventDate "2019.08.18"]
[EventType "tourn"]
[EventCountry "ARM"]
[SourceTitle "playchess.com"]
[Source "ChessBase"]
[SourceQuality "1"]
[TimeControl "40/5400+30:1800+30"]

1. Nf3 {[%emt 0:00:00]} d6 {[%emt 0:00:49]} 2. e4 {[%emt 0:01:15]} Nf6 {[%emt 0:00:56]} 3. Nc3 {[%emt 0:03:42]} c5 {[%emt 0:00:47]} 4. d4 {[%emt 0:10:10]} cxd4 {[%emt 0:00:28]} 5. Nxd4 {[%emt 0:00:14]} Nc6 {[%emt 0:00:47]} 6. Be2 {[%emt 0:00:14]} e5 {[%emt 0:00:59]} 7. Nb3 {[%emt 0:06:51]} Be7 {[%emt 0:01:07]} 8. O-O {[%emt 0:12:40]} O-O {[%emt 0:00:28]} 9. Bg5 {[%emt 0:01:21]} Nxe4 {[%emt 0:05:54]} 10. Nxe4 {[%emt 0:05:12]} Bxg5 {[%emt 0:00:05]} 11. Nxd6 {[%emt 0:01:13]} Qb6 {[%emt 0:08:37]} 12. Bc4 {[%emt 0:13:02]} g6 {[%emt 0:05:03]} 13. Qe2 {[%emt 0:04:20]} h5 {[%emt 0:09:21]} 14. Kh1 {[%emt 0:07:41]} Kg7 {[%emt 0:04:17]} 15. Rad1 {[%emt 0:05:58]} f5 {[%emt 0:08:14]} 16. f4 {[%emt 0:10:26]} Bxf4 {[%emt 0:03:29]} 17. Rxf4 {[%emt 0:00:19]} exf4 {[%emt 0:00:13]} 18. Nd4 {[%emt 0:00:27]} Bd7 {[%emt 0:04:51]} 19. Nf3 {[%emt 0:09:11]} Rf6 {[%emt 0:06:39]} 20. Bb5 {[%emt 0:01:09]} Qe3 {[%emt 0:03:17]} 21. Qc4 {[%emt 0:02:59]} a6 {[%emt 0:13:19]} 22. Bxc6 {[%emt 0:01:04]} Bxc6 {[%emt 0:00:07]} 23. Re1 {[%emt 0:00:38]} Qxe1+ {[%emt 0:01:16]} 24. Nxe1 {[%emt 0:00:07]} Rxd6 {[%emt 0:00:03]} 25. Nd3 {[%emt 0:01:28]} Re8 {[%emt 0:00:22]} 26. h4 {[%emt 0:00:38]} f3 {[%emt 0:01:05]} 27. gxf3 {[%emt 0:00:29]} Bxf3+ {[%emt 0:00:21]} 28. Kh2 {[%emt 0:00:25]} Bc6 {[%emt 0:00:13]} 29. Qc3+ {[%emt 0:00:28]} Kh7 {[%emt 0:00:25]} 30. Ne5 {[%emt 0:00:45]} Rde6 {[%emt 0:01:28]} 31. Nxc6 {[%emt 0:00:08]} Rxc6 {[%emt 0:02:15]} 32. Qd3 {[%emt 0:00:26]} Rce6 {[%emt 0:00:47]} 33. Qd5 {[%emt 0:00:25]} R8e7 {[%emt 0:00:28]} 34. Qc5 {[%emt 0:01:04]} Re4 {[%emt 0:01:30]} 35. Kg3 {[%emt 0:00:23]} Rg4+ {[%emt 0:00:38]} 36. Kf3 {[%emt 0:00:25]} Rg7 {[%emt 0:00:20]} 37. b4 {[%emt 0:00:34]} Rxh4 {[%emt 0:00:15]} 38. a4 {[%emt 0:00:08]} Rg4 {[%emt 0:00:29]} 39. c4 {[%emt 0:00:57]} h4 {[%emt 0:00:14]} 40. a5 {[%emt 0:00:00]} h3 {[%emt 0:00:00]} 41. Qd6 {[%emt 0:00:41]} Rxc4 {[%emt 0:01:02]} 0-1

[Event "80th ARM-ch 1st League 2019"]
[Site "Yerevan"]
[Date "2019.08.20"]
[Round "3.6"]
[White "Mikaelyan, Arman"]
[Black "Harutyunian, Tigran K."]
[Result "1-0"]
[ECO "B23"]
[WhiteElo "2454"]
[BlackElo "2555"]
[Annotator "ChessBase"]
[PlyCount "87"]
[EventDate "2019.08.18"]
[EventType "tourn"]
[EventCountry "ARM"]
[SourceTitle "playchess.com"]
[Source "ChessBase"]
[SourceQuality "1"]
[TimeControl "40/5400+30:1800+30"]

1. e4 {[%emt 0:06:24]} c5 {[%emt 0:00:00]} 2. Nc3 {[%emt 0:01:20]} e6 {[%emt 0:00:15]} 3. f4 {[%emt 0:00:37]} d5 {[%emt 0:03:08]} 4. Nf3 {[%emt 0:00:54]} dxe4 {[%emt 0:03:20]} 5. Nxe4 {[%emt 0:00:26]} Nf6 {[%emt 0:01:04]} 6. Nxf6+ {[%emt 0:01:42]} Qxf6 {[%emt 0:01:25]} 7. g3 {[%emt 0:00:40]} Bd7 {[%emt 0:09:47]} 8. Ne5 {[%emt 0:09:04]} Bc6 {[%emt 0:03:08]} 9. Nxc6 {[%emt 0:00:14]} Nxc6 {[%emt 0:00:06]} 10. Bg2 {[%emt 0:02:10]} Rc8 {[%emt 0:01:03]} 11. O-O {[%emt 0:00:33]} h5 {[%emt 0:06:47]} 12. d3 {[%emt 0:07:34]} g6 {[%emt 0:01:27]} 13. c3 {[%emt 0:01:24]} Bg7 {[%emt 0:02:34]} 14. Be3 {[%emt 0:00:42]} Qe7 {[%emt 0:00:55]} 15. Qa4 {[%emt 0:01:15]} a6 {[%emt 0:17:29]} 16. Qa3 {[%emt 0:05:27]} Nb8 {[%emt 0:00:18]} 17. Rae1 {[%emt 0:02:20]} Rc7 {[%emt 0:08:57]} 18. f5 {[%emt 0:19:04]} gxf5 {[%emt 0:00:25]} 19. Bf4 {[%emt 0:01:09]} O-O {[%emt 0:09:01]} 20. Bxc7 {[%emt 0:00:33]} Qxc7 {[%emt 0:00:03]} 21. Qb3 {[%emt 0:00:09]} b5 {[%emt 0:01:28]} 22. Qd1 {[%emt 0:01:33]} h4 {[%emt 0:02:00]} 23. g4 {[%emt 0:00:58]} f4 {[%emt 0:02:29]} 24. g5 {[%emt 0:00:40]} b4 {[%emt 0:02:11]} 25. Qh5 {[%emt 0:03:53]} Nd7 {[%emt 0:01:28]} 26. Qxh4 {[%emt 0:08:16]} bxc3 {[%emt 0:00:32]} 27. bxc3 {[%emt 0:00:22]} Bxc3 {[%emt 0:09:01]} 28. Re2 {[%emt 0:05:59]} Ne5 {[%emt 0:09:32]} 29. Qxf4 {[%emt 0:01:22]} Qd6 {[%emt 0:00:07]} 30. Kh1 {[%emt 0:00:46]} Qd4 {[%emt 0:01:17]} 31. Re4 {[%emt 0:00:43]} Qd5 {[%emt 0:00:55]} 32. Qg3 {[%emt 0:02:38]} Ng6 {[%emt 0:02:33]} 33. Rc4 {[%emt 0:03:21]} Qe5 {[%emt 0:00:09]} 34. Qxe5 {[%emt 0:00:09]} Bxe5 {[%emt 0:00:06]} 35. Rxc5 {[%emt 0:00:10]} Bd6 {[%emt 0:00:29]} 36. Rc6 {[%emt 0:00:27]} Be7 {[%emt 0:01:14]} 37. Rxa6 {[%emt 0:00:06]} Bxg5 {[%emt 0:00:24]} 38. Ra8 {[%emt 0:00:05]} Be3 {[%emt 0:00:27]} 39. a4 {[%emt 0:00:19]} f5 {[%emt 0:00:27]} 40. a5 {[%emt 0:00:00]} Ne5 {[%emt 0:00:00]} 41. Rxf8+ {[%emt 0:04:53]} Kxf8 {[%emt 0:00:12]} 42. a6 {[%emt 0:00:31]} Ke7 {[%emt 0:03:02]} 43. Re1 {[%emt 0:01:11]} f4 {[%emt 0:00:26]} 44. a7 {[%emt 0:00:12]} 1-0

[Event "80th ARM-ch 1st League 2019"]
[Site "Yerevan"]
[Date "2019.08.20"]
[Round "3.7"]
[White "Torosyan, Norayr"]
[Black "Shahinyan, David"]
[Result "1/2-1/2"]
[ECO "C03"]
[WhiteElo "2365"]
[BlackElo "2452"]
[Annotator "ChessBase"]
[PlyCount "96"]
[EventDate "2019.08.18"]
[EventType "tourn"]
[EventCountry "ARM"]
[SourceTitle "playchess.com"]
[Source "ChessBase"]
[SourceQuality "1"]
[TimeControl "40/5400+30:1800+30"]

1. e4 {[%emt 0:00:00]} e6 {[%emt 0:00:00]} 2. d4 {[%emt 0:00:01]} d5 {[%emt 0:00:04]} 3. Nd2 {[%emt 0:00:05]} a6 {[%emt 0:01:19]} 4. Ngf3 {[%emt 0:02:43]} c5 {[%emt 0:00:22]} 5. exd5 {[%emt 0:05:11]} exd5 {[%emt 0:00:09]} 6. dxc5 {[%emt 0:01:44]} Bxc5 {[%emt 0:00:21]} 7. Bd3 {[%emt 0:00:05]} Nf6 {[%emt 0:01:41]} 8. Nb3 {[%emt 0:04:08]} Bb6 {[%emt 0:02:07]} 9. Qe2+ {[%emt 0:01:51]} Qe7 {[%emt 0:02:31]} 10. Qxe7+ {[%emt 0:00:18]} Kxe7 {[%emt 0:00:01]} 11. O-O {[%emt 0:04:17]} Nc6 {[%emt 0:04:00]} 12. Re1+ {[%emt 0:06:48]} Be6 {[%emt 0:00:04]} 13. c3 {[%emt 0:03:25]} Rhe8 {[%emt 0:02:10]} 14. Bf4 {[%emt 0:06:06]} Rad8 {[%emt 0:02:28]} 15. Nfd4 {[%emt 0:02:44]} Nxd4 {[%emt 0:04:12]} 16. Nxd4 {[%emt 0:02:52]} Bxd4 {[%emt 0:22:04]} 17. cxd4 {[%emt 0:00:06]} Ne4 {[%emt 0:01:18]} 18. f3 {[%emt 0:09:50]} Nd6 {[%emt 0:02:27]} 19. g4 {[%emt 0:00:56]} h6 {[%emt 0:00:41]} 20. Kf2 {[%emt 0:02:17]} Rc8 {[%emt 0:01:42]} 21. Rac1 {[%emt 0:02:29]} Kd7 {[%emt 0:01:09]} 22. Be5 {[%emt 0:05:50]} f6 {[%emt 0:02:11]} 23. Rxc8 {[%emt 0:00:20]} Nxc8 {[%emt 0:00:34]} 24. Bf4 {[%emt 0:00:11]} Nd6 {[%emt 0:00:45]} 25. Rc1 {[%emt 0:03:50]} Rc8 {[%emt 0:01:24]} 26. Rxc8 {[%emt 0:00:30]} Nxc8 {[%emt 0:00:01]} 27. Bd2 {[%emt 0:00:08]} Ke8 {[%emt 0:05:50]} 28. Bb4 {[%emt 0:00:37]} Kf7 {[%emt 0:00:11]} 29. Kg3 {[%emt 0:05:49]} Ne7 {[%emt 0:03:12]} 30. h4 {[%emt 0:00:24]} Nc6 {[%emt 0:04:06]} 31. Bc5 {[%emt 0:00:35]} g6 {[%emt 0:01:19]} 32. h5 {[%emt 0:05:55]} gxh5 {[%emt 0:00:59]} 33. gxh5 {[%emt 0:00:04]} Bd7 {[%emt 0:02:17]} 34. Bg6+ {[%emt 0:01:52]} Kg7 {[%emt 0:00:13]} 35. Bc2 {[%emt 0:00:22]} Nd8 {[%emt 0:00:48]} 36. Bb6 {[%emt 0:03:34]} Nf7 {[%emt 0:02:28]} 37. Bc7 {[%emt 0:03:40]} Ng5 {[%emt 0:00:46]} 38. a4 {[%emt 0:03:14]} Be8 {[%emt 0:07:59]} 39. Bb3 {[%emt 0:00:29]} Bc6 {[%emt 0:03:01]} 40. Ba2 {[%emt 0:00:00]} Kf7 {[%emt 0:00:00]} 41. a5 {[%emt 0:13:17]} Ne6 {[%emt 0:10:46]} 42. Bb6 {[%emt 0:00:27]} Ng7 {[%emt 0:01:08]} 43. Kh4 {[%emt 0:02:32]} Ke6 {[%emt 0:15:21]} 44. Bb1 {[%emt 0:10:10]} Be8 {[%emt 0:11:59]} 45. Bc5 {[%emt 0:00:33]} Nxh5 {[%emt 0:00:29]} 46. Bf8 {[%emt 0:01:28]} Nf4 {[%emt 0:00:15]} 47. Bxh6 {[%emt 0:00:21]} Bg6 {[%emt 0:00:07]} 48. Bxf4 {[%emt 0:03:24]} Bxb1 {[%emt 0:00:04]} 1/2-1/2

[Event "80th ARM-ch 1st League 2019"]
[Site "Yerevan"]
[Date "2019.08.21"]
[Round "4.1"]
[White "Shahinyan, David"]
[Black "Gevorgyan, Albert"]
[Result "1-0"]
[ECO "C44"]
[WhiteElo "2452"]
[BlackElo "2175"]
[Annotator "ChessBase"]
[PlyCount "65"]
[EventDate "2019.08.18"]
[EventType "tourn"]
[EventCountry "ARM"]
[SourceTitle "playchess.com"]
[Source "ChessBase"]
[SourceQuality "1"]
[TimeControl "40/5400+30:1800+30"]

1. e4 {[%emt 0:00:00]} e5 {[%emt 0:00:42]} 2. Nf3 {[%emt 0:00:00]} Nc6 {[%emt 0:00:09]} 3. d4 {[%emt 0:00:12]} exd4 {[%emt 0:00:34]} 4. Nxd4 {[%emt 0:00:03]} Qf6 {[%emt 0:00:12]} 5. Nf3 {[%emt 0:00:05]} Bb4+ {[%emt 0:00:12]} 6. Nbd2 {[%emt 0:00:09]} Nge7 {[%emt 0:00:20]} 7. Be2 {[%emt 0:00:45]} O-O {[%emt 0:01:02]} 8. O-O {[%emt 0:00:33]} Bc5 {[%emt 0:01:39]} 9. Nc4 {[%emt 0:12:51]} d6 {[%emt 0:03:19]} 10. c3 {[%emt 0:00:14]} a5 {[%emt 0:05:17]} 11. Be3 {[%emt 0:07:23]} Bxe3 {[%emt 0:08:24]} 12. Nxe3 {[%emt 0:00:01]} Ng6 {[%emt 0:00:55]} 13. Nd5 {[%emt 0:03:32]} Qd8 {[%emt 0:00:08]} 14. Nd2 {[%emt 0:00:38]} Nce7 {[%emt 0:13:38]} 15. Nxe7+ {[%emt 0:09:00]} Nxe7 {[%emt 0:07:47]} 16. f4 {[%emt 0:00:32]} d5 {[%emt 0:01:52]} 17. e5 {[%emt 0:02:43]} Nf5 {[%emt 0:09:22]} 18. Rf3 {[%emt 0:05:03]} f6 {[%emt 0:06:20]} 19. Bd3 {[%emt 0:05:17]} fxe5 {[%emt 0:09:37]} 20. fxe5 {[%emt 0:00:15]} Be6 {[%emt 0:11:29]} 21. Qe2 {[%emt 0:03:07]} Qg5 {[%emt 0:03:10]} 22. Raf1 {[%emt 0:04:35]} b6 {[%emt 0:00:21]} 23. h4 {[%emt 0:18:19]} Qh5 {[%emt 0:08:17]} 24. Qf2 {[%emt 0:00:00]} g6 {[%emt 0:00:20]} 25. Rf4 {[%emt 0:01:09]} Qh6 {[%emt 0:01:24]} 26. g3 {[%emt 0:00:03]} Qg7 {[%emt 0:04:49]} 27. Nf3 {[%emt 0:00:50]} c5 {[%emt 0:00:36]} 28. Ng5 {[%emt 0:00:41]} Bd7 {[%emt 0:01:33]} 29. g4 {[%emt 0:03:58]} Ne7 {[%emt 0:00:28]} 30. e6 {[%emt 0:01:04]} Rxf4 {[%emt 0:00:31]} 31. Qxf4 {[%emt 0:00:09]} h6 {[%emt 0:00:06]} 32. exd7 {[%emt 0:00:39]} hxg5 {[%emt 0:00:10]} 33. Qc7 {[%emt 0:00:06]} 1-0

[Event "80th ARM-ch 1st League 2019"]
[Site "Yerevan"]
[Date "2019.08.21"]
[Round "4.2"]
[White "Chaqryan, Erik"]
[Black "Hayrapetyan, Hovik"]
[Result "1/2-1/2"]
[ECO "B06"]
[WhiteElo "2105"]
[BlackElo "2453"]
[Annotator "ChessBase"]
[PlyCount "35"]
[EventDate "2019.08.18"]
[EventType "tourn"]
[EventCountry "ARM"]
[SourceTitle "playchess.com"]
[Source "ChessBase"]
[SourceQuality "1"]
[TimeControl "40/5400+30:1800+30"]

1. e4 {[%emt 0:00:00]} g6 {[%emt 0:03:31]} 2. d4 {[%emt 0:01:49]} Bg7 {[%emt 0:02:42]} 3. Nc3 {[%emt 0:01:26]} c6 {[%emt 0:03:04]} 4. Be3 {[%emt 0:05:59]} d5 {[%emt 0:02:51]} 5. Qd2 {[%emt 0:03:36]} Nf6 {[%emt 0:15:01]} 6. e5 {[%emt 0:03:43]} Ng4 {[%emt 0:00:21]} 7. f4 {[%emt 0:06:31]} c5 {[%emt 0:07:09]} 8. Nf3 {[%emt 0:04:37]} Nxe3 {[%emt 0:07:03]} 9. Qxe3 {[%emt 0:00:04]} c4 {[%emt 0:03:30]} 10. b3 {[%emt 0:18:36]} cxb3 {[%emt 0:01:13]} 11. axb3 {[%emt 0:00:12]} O-O {[%emt 0:00:51]} 12. Be2 {[%emt 0:08:51]} Bf5 {[%emt 0:08:08]} 13. Bd3 {[%emt 0:01:48]} Bxd3 {[%emt 0:03:01]} 14. Qxd3 {[%emt 0:00:51]} Nc6 {[%emt 0:00:23]} 15. Ne2 {[%emt 0:02:36]} Rc8 {[%emt 0:02:38]} 16. c3 {[%emt 0:08:36]} Qd7 {[%emt 0:06:33]} 17. O-O {[%emt 0:02:21]} a5 {[%emt 0:00:22]} 18. h3 {[%emt 0:03:49]} 1/2-1/2

[Event "80th ARM-ch 1st League 2019"]
[Site "Yerevan"]
[Date "2019.08.21"]
[Round "4.3"]
[White "Sargsyan, Shant"]
[Black "Baghdasaryan, Vahe"]
[Result "1-0"]
[ECO "D10"]
[WhiteElo "2540"]
[BlackElo "2373"]
[Annotator "ChessBase"]
[PlyCount "115"]
[EventDate "2019.08.18"]
[EventType "tourn"]
[EventCountry "ARM"]
[SourceTitle "playchess.com"]
[Source "ChessBase"]
[SourceQuality "1"]
[TimeControl "40/5400+30:1800+30"]

1. d4 {[%emt 0:01:53]} d5 {[%emt 0:00:00]} 2. c4 {[%emt 0:00:54]} c6 {[%emt 0:00:00]} 3. cxd5 {[%emt 0:00:32]} cxd5 {[%emt 0:00:00]} 4. Bf4 {[%emt 0:00:17]} Nc6 {[%emt 0:00:25]} 5. e3 {[%emt 0:00:13]} Nf6 {[%emt 0:01:29]} 6. Nc3 {[%emt 0:00:36]} Bf5 {[%emt 0:01:32]} 7. Nf3 {[%emt 0:01:48]} e6 {[%emt 0:04:05]} 8. Be2 {[%emt 0:00:22]} Bb4 {[%emt 0:03:47]} 9. O-O {[%emt 0:01:08]} Bxc3 {[%emt 0:05:01]} 10. bxc3 {[%emt 0:00:10]} Ne4 {[%emt 0:00:05]} 11. Qb3 {[%emt 0:07:13]} O-O {[%emt 0:02:02]} 12. Qxb7 {[%emt 0:03:32]} Nxc3 {[%emt 0:00:15]} 13. Ba6 {[%emt 0:00:29]} Na5 {[%emt 0:00:05]} 14. Qc7 {[%emt 0:01:18]} Nc4 {[%emt 0:00:28]} 15. Rfe1 {[%emt 0:04:29]} Bd3 {[%emt 0:05:26]} 16. Kh1 {[%emt 0:06:02]} Ne4 {[%emt 0:03:51]} 17. Kg1 {[%emt 0:08:53]} Nc3 {[%emt 0:21:28]} 18. a4 {[%emt 0:04:07]} Ne2+ {[%emt 0:06:25]} 19. Kh1 {[%emt 0:00:06]} Nxf4 {[%emt 0:00:08]} 20. Qxf4 {[%emt 0:00:22]} Nb2 21. Ra2 {[%emt 0:00:56]} Bxa6 {[%emt 0:04:28]} 22. Rxb2 {[%emt 0:00:01]} Qa5 {[%emt 0:02:27]} 23. h4 {[%emt 0:03:17]} Rac8 {[%emt 0:08:54]} 24. Ra1 {[%emt 0:04:55]} Qc7 {[%emt 0:05:05]} 25. Qe5 {[%emt 0:06:16]} Qc3 {[%emt 0:01:31]} 26. Rba2 {[%emt 0:02:29]} Bc4 {[%emt 0:00:37]} 27. Ra3 {[%emt 0:00:07]} Qb2 {[%emt 0:00:09]} 28. Qg3 {[%emt 0:01:25]} Bb3 {[%emt 0:05:23]} 29. Kh2 {[%emt 0:02:15]} Rc2 {[%emt 0:01:56]} 30. Ne5 {[%emt 0:01:12]} Bc4 {[%emt 0:03:36]} 31. h5 {[%emt 0:04:32]} h6 {[%emt 0:01:57]} 32. Ng4 {[%emt 0:01:27]} f5 {[%emt 0:07:27]} 33. Nxh6+ {[%emt 0:00:51]} Kh8 {[%emt 0:00:01]} 34. Qd6 {[%emt 0:01:07]} Qb8 {[%emt 0:00:34]} 35. Nf7+ {[%emt 0:01:03]} Kg8 {[%emt 0:00:08]} 36. Qxb8 {[%emt 0:01:07]} Rxb8 {[%emt 0:00:01]} 37. Ng5 {[%emt 0:01:06]} e5 {[%emt 0:05:52]} 38. dxe5 {[%emt 0:02:42]} Rxf2 {[%emt 0:00:05]} 39. Nh3 {[%emt 0:01:04]} Rd2 {[%emt 0:00:08]} 40. Nf4 {[%emt 0:00:00]} Re8 {[%emt 0:00:00]} 41. e6 {[%emt 0:05:25]} d4 {[%emt 0:09:04]} 42. Re1 {[%emt 0:02:49]} Bxe6 {[%emt 0:03:36]} 43. exd4 {[%emt 0:00:09]} Bd7 {[%emt 0:00:07]} 44. Rxe8+ {[%emt 0:01:57]} Bxe8 {[%emt 0:00:15]} 45. d5 {[%emt 0:00:21]} Rd4 {[%emt 0:03:16]} 46. Kg3 {[%emt 0:00:21]} Bf7 {[%emt 0:05:25]} 47. Rc3 {[%emt 0:01:46]} Rxa4 {[%emt 0:02:27]} 48. Rc8+ {[%emt 0:04:38]} Kh7 {[%emt 0:00:05]} 49. Rc7 {[%emt 0:02:06]} Bg8 {[%emt 0:05:25]} 50. d6 {[%emt 0:01:35]} Rd4 {[%emt 0:00:06]} 51. d7 {[%emt 0:00:12]} Bb3 {[%emt 0:07:02]} 52. Rxa7 {[%emt 0:01:14]} Kh6 {[%emt 0:00:05]} 53. Ra3 {[%emt 0:02:02]} Bc2 {[%emt 0:00:47]} 54. Ra6+ {[%emt 0:00:07]} g6 {[%emt 0:01:11]} 55. Rxg6+ {[%emt 0:00:16]} Kh7 {[%emt 0:00:01]} 56. Ne6 {[%emt 0:00:15]} f4+ {[%emt 0:00:36]} 57. Kh2 {[%emt 0:00:34]} Rxd7 {[%emt 0:01:40]} 58. Nf8+ {[%emt 0:00:06]} 1-0

[Event "80th ARM-ch 1st League 2019"]
[Site "Yerevan"]
[Date "2019.08.21"]
[Round "4.5"]
[White "Harutjunyan, Gevorg"]
[Black "Gharibyan, Mamikon"]
[Result "1/2-1/2"]
[ECO "C29"]
[WhiteElo "2455"]
[BlackElo "2365"]
[Annotator "ChessBase"]
[PlyCount "49"]
[EventDate "2019.08.18"]
[EventType "tourn"]
[EventCountry "ARM"]
[SourceTitle "playchess.com"]
[Source "ChessBase"]
[SourceQuality "1"]
[TimeControl "40/5400+30:1800+30"]

1. e4 {[%emt 0:00:00]} e5 {[%emt 0:01:04]} 2. Nc3 {[%emt 0:00:00]} Nf6 {[%emt 0:00:56]} 3. f4 {[%emt 0:00:00]} d5 {[%emt 0:02:13]} 4. fxe5 {[%emt 0:00:05]} Nxe4 {[%emt 0:00:31]} 5. d3 {[%emt 0:01:50]} Nxc3 {[%emt 0:03:41]} 6. bxc3 {[%emt 0:00:05]} c5 {[%emt 0:10:11]} 7. Nf3 {[%emt 0:02:29]} Nc6 {[%emt 0:01:43]} 8. Be2 {[%emt 0:01:47]} Be7 {[%emt 0:05:20]} 9. O-O {[%emt 0:02:52]} O-O {[%emt 0:08:11]} 10. Bf4 {[%emt 0:13:18]} f6 {[%emt 0:03:47]} 11. d4 {[%emt 0:08:00]} Bf5 {[%emt 0:03:42]} 12. Rb1 {[%emt 0:03:28]} Qd7 {[%emt 0:04:58]} 13. exf6 {[%emt 0:02:39]} Rxf6 {[%emt 0:07:12]} 14. Ne5 {[%emt 0:16:19]} Nxe5 {[%emt 0:00:14]} 15. Bxe5 {[%emt 0:00:41]} Rff8 {[%emt 0:02:31]} 16. Bf3 {[%emt 0:10:21]} b6 {[%emt 0:11:10]} 17. c4 {[%emt 0:06:07]} Be4 {[%emt 0:00:54]} 18. Bxe4 {[%emt 0:13:00]} dxe4 {[%emt 0:00:05]} 19. c3 {[%emt 0:00:52]} Bd6 {[%emt 0:08:53]} 20. Re1 {[%emt 0:04:38]} Bxe5 {[%emt 0:05:43]} 21. dxe5 {[%emt 0:00:08]} Qd3 {[%emt 0:00:27]} 22. Qxd3 {[%emt 0:03:05]} exd3 {[%emt 0:00:08]} 23. Rbd1 {[%emt 0:00:14]} Rad8 {[%emt 0:00:17]} 24. e6 {[%emt 0:02:07]} Rfe8 {[%emt 0:00:53]} 25. Re3 {[%emt 0:01:06]} 1/2-1/2

[Event "80th ARM-ch 1st League 2019"]
[Site "Yerevan"]
[Date "2019.08.21"]
[Round "4.6"]
[White "Harutyunian, Tigran K."]
[Black "Torosyan, Norayr"]
[Result "1/2-1/2"]
[ECO "A48"]
[WhiteElo "2555"]
[BlackElo "2365"]
[Annotator "ChessBase"]
[PlyCount "78"]
[EventDate "2019.08.18"]
[EventType "tourn"]
[EventCountry "ARM"]
[SourceTitle "playchess.com"]
[Source "ChessBase"]
[SourceQuality "1"]
[TimeControl "40/5400+30:1800+30"]

1. d4 {[%emt 0:01:04]} Nf6 {[%emt 0:00:00]} 2. Nf3 {[%emt 0:00:15]} g6 {[%emt 0:00:00]} 3. e3 {[%emt 0:00:45]} Bg7 {[%emt 0:01:21]} 4. Be2 {[%emt 0:00:19]} O-O {[%emt 0:00:36]} 5. O-O {[%emt 0:00:10]} d6 {[%emt 0:02:54]} 6. b3 {[%emt 0:00:26]} Nc6 {[%emt 0:03:00]} 7. Bb2 {[%emt 0:01:26]} Bf5 {[%emt 0:02:15]} 8. c4 {[%emt 0:03:25]} e5 {[%emt 0:01:46]} 9. d5 {[%emt 0:04:19]} Nb4 {[%emt 0:17:45]} 10. a3 {[%emt 0:01:33]} Nc2 {[%emt 0:00:04]} 11. Ra2 {[%emt 0:01:32]} Ng4 {[%emt 0:00:05]} 12. Bc1 {[%emt 0:51:19]} e4 {[%emt 0:03:56]} 13. Ne1 {[%emt 0:05:18]} Nxe1 {[%emt 0:06:50]} 14. Qxe1 {[%emt 0:00:09]} Qg5 {[%emt 0:08:42]} 15. Kh1 {[%emt 0:01:46]} Rae8 {[%emt 0:07:01]} 16. Bb2 {[%emt 0:03:03]} Bxb2 {[%emt 0:07:14]} 17. Rxb2 {[%emt 0:00:15]} Qh6 {[%emt 0:00:25]} 18. Bxg4 {[%emt 0:02:34]} Bxg4 {[%emt 0:00:09]} 19. Qa5 {[%emt 0:00:32]} Re7 {[%emt 0:11:41]} 20. Nd2 {[%emt 0:00:45]} Be2 {[%emt 0:07:38]} 21. Re1 {[%emt 0:00:21]} Bd3 {[%emt 0:00:04]} 22. Nf1 {[%emt 0:01:55]} b6 {[%emt 0:01:10]} 23. Qc3 {[%emt 0:00:20]} Bxf1 {[%emt 0:02:40]} 24. Rxf1 {[%emt 0:00:02]} Re5 {[%emt 0:00:07]} 25. h3 {[%emt 0:03:19]} Rfe8 {[%emt 0:01:05]} 26. Kh2 {[%emt 0:03:03]} Qh4 {[%emt 0:05:00]} 27. b4 {[%emt 0:00:44]} Rf5 {[%emt 0:03:00]} 28. c5 {[%emt 0:00:52]} dxc5 {[%emt 0:01:41]} 29. Rd1 {[%emt 0:00:54]} Qe7 {[%emt 0:02:49]} 30. bxc5 {[%emt 0:00:09]} bxc5 {[%emt 0:00:09]} 31. Rc2 {[%emt 0:03:22]} Qd6+ {[%emt 0:02:39]} 32. Kg1 {[%emt 0:00:02]} Rxd5 {[%emt 0:00:07]} 33. Rxd5 {[%emt 0:00:19]} Qxd5 {[%emt 0:00:03]} 34. Qxc5 {[%emt 0:00:06]} Qxc5 {[%emt 0:00:22]} 35. Rxc5 {[%emt 0:00:02]} Rc8 {[%emt 0:00:19]} 36. Ra5 {[%emt 0:01:14]} c5 {[%emt 0:01:18]} 37. Rxa7 {[%emt 0:00:16]} c4 {[%emt 0:00:05]} 38. Rb7 {[%emt 0:00:43]} c3 {[%emt 0:00:17]} 39. Rb1 {[%emt 0:00:06]} Ra8 {[%emt 0:00:49]} 1/2-1/2

[Event "80th ARM-ch 1st League 2019"]
[Site "Yerevan"]
[Date "2019.08.21"]
[Round "4.7"]
[White "Hoghmrtsyan, Artur"]
[Black "Khojayan, Vardan"]
[Result "0-1"]
[ECO "E17"]
[WhiteElo "2317"]
[BlackElo "2236"]
[Annotator "NA"]
[PlyCount "60"]
[EventDate "2019.08.18"]
[EventType "tourn"]
[EventCountry "ARM"]
[SourceTitle "playchess.com"]
[Source "ChessBase"]
[SourceQuality "1"]
[TimeControl "40/5400+30:1800+30"]

1. d4 {[%emt 0:07:39]} Nf6 {[%emt 0:00:00]} 2. Nf3 {[%emt 0:00:07]} e6 {[%emt 0:00:00]} 3. g3 {[%emt 0:00:05]} b6 {[%emt 0:01:53]} 4. Bg2 {[%emt 0:00:09]} Bb7 {[%emt 0:00:05]} 5. c4 {[%emt 0:00:35]} Be7 {[%emt 0:01:23]} 6. O-O {[%emt 0:00:12]} O-O {[%emt 0:00:05]} 7. b3 {[%emt 0:00:39]} d5 {[%emt 0:03:03]} 8. cxd5 {[%emt 0:01:16]} Nxd5 {[%emt 0:06:36]} 9. Bb2 {[%emt 0:03:02]} c5 {[%emt 0:01:50]} 10. e4 {[%emt 0:14:55]} Nf6 {[%emt 0:02:38]} 11. e5 {[%emt 0:01:10]} Nfd7 {[%emt 0:20:11]} 12. Nc3 {[%emt 0:08:54]} cxd4 $14 {[%emt 0:07:00]} 13. Qxd4 {[%emt 0:01:50]} Nc6 {[%emt 0:05:29]} 14. Qe3 {[%emt 0:08:25]} Bc5 {[%emt 0:09:12]} 15. Qf4 {[%emt 0:03:33]} Ne7 {[%emt 0:06:10]} 16. Ne4 {[%emt 0:04:42]} Ng6 {[%emt 0:02:34]} 17. Qg4 {[%emt 0:00:11]} Qb8 {[%emt 0:02:34]} 18. Rad1 {[%emt 0:10:12]} Bd5 {[%emt 0:03:10]} 19. Rfe1 {[%emt 0:13:49]} Rd8 {[%emt 0:05:04]} 20. h4 {[%emt 0:03:27]} Be7 {[%emt 0:00:47]} 21. Neg5 {[%emt 0:02:40]} Bxg5 {[%emt 0:02:06]} 22. Nxg5 {[%emt 0:02:31]} Bxg2 {[%emt 0:02:20]} 23. Kxg2 {[%emt 0:00:47]} Qb7+ {[%emt 0:00:25]} 24. Kg1 {[%emt 0:00:37]} Nc5 {[%emt 0:05:27]} 25. h5 {[%emt 0:00:21]} Ne7 {[%emt 0:00:05]} 26. h6 {[%emt 0:04:35]} Nf5 {[%emt 0:00:01]} 27. hxg7 {[%emt 0:00:15]} h6 {[%emt 0:00:09]} 28. Rxd8+ {[%emt 0:01:19]} Rxd8 {[%emt 0:00:15]} 29. Nh3 {[%emt 0:00:43]} Nd3 {[%emt 0:04:21]} 30. Re2 {[%emt 0:01:44]} Nf4 {[%emt 0:02:23]} 0-1